[Event "December 19 Early 2023"]
[Site "https://www.chess.com"]
[Date "2023.12.19"]
[Round "5"]
[White "Ohler, Julius"]
[Black "Papp, Petra"]
[Result "1-0"]
[Board "186"]
[TimeControl "180+1"]
[WhiteFideId "16238982"]
[BlackFideId "739049"]
[WhiteElo "2200"]
[BlackElo "2270"]
[WhiteTeam "GER"]
[BlackTeam "HUN"]
[WhiteClock "0:00:24"]
[BlackClock "0:00:19"]

1. Nf3 {[%clk 0:03:00]}  Nf6 {[%clk 0:02:59]} 2. g3 {[%clk 0:03:00]}  g6 {[%clk 0:02:58]} 3. Bg2 {[%clk 0:03:00]}  Bg7 {[%clk 0:02:58]} 4. O-O {[%clk 0:03:01]}  O-O {[%clk 0:02:58]} 5. c4 {[%clk 0:02:58]}  d6 {[%clk 0:02:53]} 6. Nc3 {[%clk 0:02:57]}  Nc6 {[%clk 0:02:52]} 7. d3 {[%clk 0:02:57]}  e5 {[%clk 0:02:51]} 8. Rb1 {[%clk 0:02:55]}  a5 {[%clk 0:02:50]} 9. a3 {[%clk 0:02:55]}  Bg4 {[%clk 0:02:45]} 10. b4 {[%clk 0:02:52]}  axb4 {[%clk 0:02:44]} 11. axb4 {[%clk 0:02:53]}  Qc8 {[%clk 0:02:40]} 12. Be3 {[%clk 0:02:45]}  Bxf3 {[%clk 0:02:35]} 13. Bxf3 {[%clk 0:02:43]}  Ng4 {[%clk 0:02:35]} 14. Bd2 {[%clk 0:02:37]}  Nd4 {[%clk 0:02:29]} 15. Bg2 {[%clk 0:02:38]}  c6 {[%clk 0:02:26]} 16. e3 {[%clk 0:02:29]}  f5 {[%clk 0:01:48]} 17. exd4 {[%clk 0:02:28]}  exd4 {[%clk 0:01:48]} 18. Ne2 {[%clk 0:02:26]}  Ne5 {[%clk 0:01:46]} 19. Bf4 {[%clk 0:02:21]}  h6 {[%clk 0:01:41]} 20. Nxd4 {[%clk 0:02:17]}  Ng4 {[%clk 0:01:37]} 21. Nf3 {[%clk 0:02:09]}  g5 {[%clk 0:01:36]} 22. Bxd6 {[%clk 0:02:09]}  Rd8 {[%clk 0:01:36]} 23. c5 {[%clk 0:02:09]}  Qe6 {[%clk 0:01:34]} 24. Re1 {[%clk 0:02:06]}  Qa2 {[%clk 0:01:32]} 25. Qb3+ {[%clk 0:02:06]}  Qxb3 {[%clk 0:01:32]} 26. Rxb3 {[%clk 0:02:07]}  Ra2 {[%clk 0:01:32]} 27. Ne5 {[%clk 0:01:45]}  Bxe5 {[%clk 0:01:27]} 28. Bxe5 {[%clk 0:01:45]}  Nxf2 {[%clk 0:01:25]} 29. Bd6 {[%clk 0:01:40]}  Ng4 {[%clk 0:01:20]} 30. d4 {[%clk 0:01:40]}  Rda8 {[%clk 0:01:17]} 31. d5 {[%clk 0:01:38]}  Rd2 {[%clk 0:01:15]} 32. dxc6 {[%clk 0:00:53]}  bxc6 {[%clk 0:01:10]} 33. Bxc6 {[%clk 0:00:50]}  Raa2 {[%clk 0:01:05]} 34. h3 {[%clk 0:00:49]}  Nf2 {[%clk 0:01:02]} 35. Bg2 {[%clk 0:00:30]}  Nd3 {[%clk 0:00:39]} 36. Bd5+ {[%clk 0:00:30]}  Kg7 {[%clk 0:00:37]} 37. Rxd3 {[%clk 0:00:30]}  Rxd3 {[%clk 0:00:35]} 38. Bxa2 {[%clk 0:00:30]}  f4 {[%clk 0:00:33]} 39. gxf4 {[%clk 0:00:30]}  gxf4 {[%clk 0:00:34]} 40. Bxf4 {[%clk 0:00:30]}  Rf3 {[%clk 0:00:34]} 41. Be5+ {[%clk 0:00:30]}  Kg6 {[%clk 0:00:34]} 42. Bb1+ {[%clk 0:00:30]}  Kg5 {[%clk 0:00:33]} 43. Kg2 {[%clk 0:00:27]}  Rb3 {[%clk 0:00:31]} 44. Be4 {[%clk 0:00:25]}  h5 {[%clk 0:00:31]} 45. c6 {[%clk 0:00:25]}  h4 {[%clk 0:00:27]} 46. c7 {[%clk 0:00:24]}  Rxb4 {[%clk 0:00:20]} 47. c8=Q {[%clk 0:00:24]}  Ra4 {[%clk 0:00:19]} 48. Qf5+ {[%clk 0:00:23]}  Kh6 {[%clk 0:00:19]} 49. Qg6# {[%clk 0:00:24]} 1-0

[Event "December 19 Early 2023"]
[Site "https://www.chess.com"]
[Date "2023.12.19"]
[Round "5"]
[White "Guzman Lozano, Campo Elias"]
[Black "Ovezdurdyyeva, Jemal"]
[Result "0-1"]
[Board "188"]
[TimeControl "180+1"]
[WhiteFideId "4403746"]
[BlackFideId "14001888"]
[WhiteElo "2099"]
[BlackElo "2086"]
[WhiteTeam "COL"]
[BlackTeam "TKM"]
[WhiteClock "0:00:15"]
[BlackClock "0:01:06"]

1. e4 {[%clk 0:02:55]}  d6 {[%clk 0:02:54]} 2. d4 {[%clk 0:02:54]}  Nf6 {[%clk 0:02:53]} 3. Nc3 {[%clk 0:02:52]}  g6 {[%clk 0:02:53]} 4. f3 {[%clk 0:02:52]}  c6 {[%clk 0:02:54]} 5. Bg5 {[%clk 0:02:51]}  Bg7 {[%clk 0:02:54]} 6. Qd2 {[%clk 0:02:51]}  h6 {[%clk 0:02:52]} 7. Be3 {[%clk 0:02:49]}  b5 {[%clk 0:02:53]} 8. Bd3 {[%clk 0:02:46]}  h5 {[%clk 0:02:50]} 9. h4 {[%clk 0:02:38]}  O-O {[%clk 0:02:43]} 10. Nh3 {[%clk 0:02:34]}  e5 {[%clk 0:02:40]} 11. d5 {[%clk 0:02:25]}  b4 {[%clk 0:02:39]} 12. Ne2 {[%clk 0:02:21]}  cxd5 {[%clk 0:02:38]} 13. exd5 {[%clk 0:02:20]}  Nxd5 {[%clk 0:02:39]} 14. Bh6 {[%clk 0:02:19]}  Qxh4+ {[%clk 0:02:34]} 15. g3 {[%clk 0:02:16]}  Qf6 {[%clk 0:02:33]} 16. Bxg7 {[%clk 0:02:10]}  Kxg7 {[%clk 0:02:32]} 17. Be4 {[%clk 0:02:09]}  Bb7 {[%clk 0:02:28]} 18. Bxd5 {[%clk 0:02:09]}  Bxd5 {[%clk 0:02:29]} 19. Qxd5 {[%clk 0:02:09]}  Nd7 {[%clk 0:02:30]} 20. O-O {[%clk 0:02:06]}  Nb6 {[%clk 0:02:28]} 21. Qd2 {[%clk 0:02:05]}  Rac8 {[%clk 0:02:27]} 22. Rad1 {[%clk 0:01:56]}  Nc4 {[%clk 0:02:27]} 23. Qxb4 {[%clk 0:01:56]}  Ne3 {[%clk 0:02:22]} 24. Rxd6 {[%clk 0:01:54]}  Qf5 {[%clk 0:02:22]} 25. Qe4 {[%clk 0:01:32]}  Qxe4 {[%clk 0:02:12]} 26. fxe4 {[%clk 0:01:31]}  Nxf1 {[%clk 0:02:13]} 27. Kxf1 {[%clk 0:01:27]}  Rxc2 {[%clk 0:02:13]} 28. Ng5 {[%clk 0:01:27]}  Rxb2 {[%clk 0:02:13]} 29. Rd7 {[%clk 0:01:26]}  Rxa2 {[%clk 0:02:12]} 30. Ne6+ {[%clk 0:01:25]}  Kg8 {[%clk 0:02:11]} 31. Nxf8 {[%clk 0:01:25]}  Kxf8 {[%clk 0:02:12]} 32. Nc3 {[%clk 0:01:24]}  Ra3 {[%clk 0:02:10]} 33. Rc7 {[%clk 0:01:21]}  a5 {[%clk 0:02:07]} 34. Kg2 {[%clk 0:01:21]}  Kg7 {[%clk 0:01:57]} 35. Nd5 {[%clk 0:01:21]}  g5 {[%clk 0:01:52]} 36. Ra7 {[%clk 0:01:20]}  Ra4 {[%clk 0:01:44]} 37. Kf3 {[%clk 0:01:17]}  g4+ {[%clk 0:01:44]} 38. Ke3 {[%clk 0:01:15]}  Ra3+ {[%clk 0:01:44]} 39. Kd2 {[%clk 0:01:15]}  Rxg3 {[%clk 0:01:43]} 40. Rxa5 {[%clk 0:01:15]}  h4 {[%clk 0:01:41]} 41. Ne3 {[%clk 0:01:13]}  Kf6 {[%clk 0:01:29]} 42. Ke2 {[%clk 0:01:09]}  h3 {[%clk 0:01:28]} 43. Ra1 {[%clk 0:01:06]}  Kg5 {[%clk 0:01:23]} 44. Rf1 {[%clk 0:01:03]}  f6 {[%clk 0:01:16]} 45. Rf2 {[%clk 0:00:49]}  Rg1 {[%clk 0:01:14]} 46. Rf5+ {[%clk 0:00:47]}  Kg6 {[%clk 0:01:13]} 47. Kf2 {[%clk 0:00:47]}  h2 {[%clk 0:01:08]} 48. Nd5 {[%clk 0:00:27]}  h1=Q {[%clk 0:01:06]} 49. Rxf6+ {[%clk 0:00:15]}  Kg7 {[%clk 0:01:06]} 0-1

[Event "December 19 Early 2023"]
[Site "https://www.chess.com"]
[Date "2023.12.19"]
[Round "5"]
[White "Delorme, Axel"]
[Black "Kiseleva, Arina"]
[Result "1-0"]
[Board "190"]
[TimeControl "180+1"]
[WhiteFideId "632023"]
[BlackFideId "4164989"]
[WhiteElo "2478"]
[BlackElo "1740"]
[WhiteTeam "FRA"]
[BlackTeam "RUS"]
[WhiteClock "0:00:10"]
[BlackClock "0:00:00"]

1. e4 {[%clk 0:03:00]}  c6 {[%clk 0:02:59]} 2. d4 {[%clk 0:03:00]}  d5 {[%clk 0:03:00]} 3. Nc3 {[%clk 0:03:01]}  dxe4 {[%clk 0:03:00]} 4. Nxe4 {[%clk 0:03:02]}  Nf6 {[%clk 0:03:00]} 5. Nxf6+ {[%clk 0:03:02]}  exf6 {[%clk 0:03:01]} 6. Bc4 {[%clk 0:03:02]}  Bd6 {[%clk 0:02:59]} 7. Qe2+ {[%clk 0:03:02]}  Qe7 {[%clk 0:02:59]} 8. Qxe7+ {[%clk 0:03:02]}  Kxe7 {[%clk 0:02:59]} 9. Ne2 {[%clk 0:03:03]}  Re8 {[%clk 0:02:59]} 10. Bd3 {[%clk 0:02:57]}  g6 {[%clk 0:02:58]} 11. Bf4 {[%clk 0:02:52]}  Be6 {[%clk 0:02:48]} 12. O-O-O {[%clk 0:02:47]}  b5 {[%clk 0:02:35]} 13. Bxd6+ {[%clk 0:02:42]}  Kxd6 {[%clk 0:02:34]} 14. b3 {[%clk 0:02:35]}  a5 {[%clk 0:02:30]} 15. c4 {[%clk 0:02:33]}  a4 {[%clk 0:02:24]} 16. Kb2 {[%clk 0:02:27]}  axb3 {[%clk 0:02:14]} 17. axb3 {[%clk 0:02:27]}  bxc4 {[%clk 0:02:12]} 18. bxc4 {[%clk 0:02:28]}  Bf5 {[%clk 0:01:52]} 19. Ng3 {[%clk 0:02:16]}  Bxd3 {[%clk 0:01:50]} 20. Rxd3 {[%clk 0:02:17]}  Nd7 {[%clk 0:01:44]} 21. Ra3 {[%clk 0:01:52]}  Rxa3 {[%clk 0:01:18]} 22. Kxa3 {[%clk 0:01:53]}  c5 {[%clk 0:01:07]} 23. Rd1 {[%clk 0:01:45]}  Nb6 {[%clk 0:01:01]} 24. Kb3 {[%clk 0:01:37]}  f5 {[%clk 0:00:56]} 25. f3 {[%clk 0:01:34]}  h5 {[%clk 0:00:47]} 26. h4 {[%clk 0:01:34]}  cxd4 {[%clk 0:00:38]} 27. Kb4 {[%clk 0:01:22]}  Nd7 {[%clk 0:00:33]} 28. Rxd4+ {[%clk 0:01:21]}  Kc6 {[%clk 0:00:33]} 29. Rd5 {[%clk 0:01:10]}  Rb8+ {[%clk 0:00:26]} 30. Kc3 {[%clk 0:01:09]}  Rb1 {[%clk 0:00:16]} 31. Ne2 {[%clk 0:01:05]}  Nb6 {[%clk 0:00:05]} 32. Rb5 {[%clk 0:01:00]}  Rxb5 {[%clk 0:00:04]} 33. Nd4+ {[%clk 0:01:00]}  Kc5 {[%clk 0:00:03]} 34. cxb5 {[%clk 0:00:56]}  Nd5+ {[%clk 0:00:03]} 35. Kd3 {[%clk 0:00:54]}  Nc7 {[%clk 0:00:04]} 36. Ke3 {[%clk 0:00:48]}  Nxb5 {[%clk 0:00:04]} 37. Nxf5 {[%clk 0:00:20]}  gxf5 {[%clk 0:00:03]} 38. Kf4 {[%clk 0:00:21]}  Nd4 {[%clk 0:00:02]} 39. Kg5 {[%clk 0:00:20]}  Ne2 {[%clk 0:00:02]} 40. Kxh5 {[%clk 0:00:13]}  f4 {[%clk 0:00:00]} 41. Kg5 {[%clk 0:00:10]} 1-0

[Event "December 19 Early 2023"]
[Site "https://www.chess.com"]
[Date "2023.12.19"]
[Round "5"]
[White "Mouhamad, Joachim"]
[Black "Negron Lizarazo, Juan Sebastian"]
[Result "0-1"]
[Board "192"]
[TimeControl "180+1"]
[WhiteFideId "656410"]
[BlackFideId "3936910"]
[WhiteElo "2125"]
[BlackElo "1647"]
[WhiteTeam "FRA"]
[BlackTeam "COL"]
[WhiteClock "0:00:00"]
[BlackClock "0:00:06"]

1. e4 {[%clk 0:03:00]}  c5 {[%clk 0:02:47]} 2. Nf3 {[%clk 0:02:59]}  d6 {[%clk 0:02:45]} 3. d4 {[%clk 0:02:58]}  cxd4 {[%clk 0:02:46]} 4. Nxd4 {[%clk 0:02:59]}  Nf6 {[%clk 0:02:45]} 5. Nc3 {[%clk 0:03:00]}  a6 {[%clk 0:02:46]} 6. f3 {[%clk 0:02:52]}  e5 {[%clk 0:02:44]} 7. Nb3 {[%clk 0:02:52]}  Be7 {[%clk 0:02:44]} 8. Be3 {[%clk 0:02:49]}  h5 {[%clk 0:02:43]} 9. Qd2 {[%clk 0:02:44]}  Be6 {[%clk 0:02:43]} 10. Nd5 {[%clk 0:02:43]}  Nxd5 {[%clk 0:02:41]} 11. exd5 {[%clk 0:02:43]}  Bf5 {[%clk 0:02:41]} 12. Be2 {[%clk 0:02:28]}  Nd7 {[%clk 0:02:36]} 13. O-O {[%clk 0:02:21]}  O-O {[%clk 0:02:32]} 14. Na5 {[%clk 0:02:21]}  Qc7 {[%clk 0:02:17]} 15. c4 {[%clk 0:02:13]}  Nb6 {[%clk 0:02:04]} 16. Rfd1 {[%clk 0:01:58]}  Rac8 {[%clk 0:01:50]} 17. c5 {[%clk 0:01:51]}  Nd7 {[%clk 0:01:24]} 18. c6 {[%clk 0:01:34]}  bxc6 {[%clk 0:01:17]} 19. Nxc6 {[%clk 0:01:31]}  Nc5 {[%clk 0:00:47]} 20. b4 {[%clk 0:01:22]}  Na4 {[%clk 0:00:33]} 21. Bxa6 {[%clk 0:01:17]}  Ra8 {[%clk 0:00:29]} 22. Be2 {[%clk 0:01:09]}  Bf6 {[%clk 0:00:27]} 23. Rac1 {[%clk 0:01:02]}  Qb7 {[%clk 0:00:26]} 24. b5 {[%clk 0:00:58]}  e4 {[%clk 0:00:21]} 25. fxe4 {[%clk 0:00:49]}  Bxe4 {[%clk 0:00:17]} 26. Bd4 {[%clk 0:00:49]}  Bxd4+ {[%clk 0:00:15]} 27. Qxd4 {[%clk 0:00:49]}  Bg6 {[%clk 0:00:14]} 28. h3 {[%clk 0:00:35]}  Nc5 {[%clk 0:00:13]} 29. Rxc5 {[%clk 0:00:26]}  dxc5 {[%clk 0:00:13]} 30. Qxc5 {[%clk 0:00:27]}  Rfe8 {[%clk 0:00:14]} 31. Bf3 {[%clk 0:00:25]}  Rxa2 {[%clk 0:00:13]} 32. d6 {[%clk 0:00:24]}  Qd7 {[%clk 0:00:13]} 33. Nb4 {[%clk 0:00:15]}  Rb2 {[%clk 0:00:12]} 34. Bc6 {[%clk 0:00:14]}  Qe6 {[%clk 0:00:09]} 35. Bxe8 {[%clk 0:00:14]}  Qe2 {[%clk 0:00:09]} 36. Bc6 {[%clk 0:00:07]}  Qxd1+ {[%clk 0:00:08]} 37. Kh2 {[%clk 0:00:07]}  Qd2 {[%clk 0:00:06]} 38. d7 {[%clk 0:00:06]}  Qf4+ {[%clk 0:00:06]} 39. Kg1 {[%clk 0:00:00]}  Rb1+ {[%clk 0:00:06]} 0-1

[Event "December 19 Early 2023"]
[Site "https://www.chess.com"]
[Date "2023.12.19"]
[Round "5"]
[White "Wael Sabry, Mina"]
[Black "Feliz Dotel, Dewar Bienvenido"]
[Result "1-0"]
[Board "193"]
[TimeControl "180+1"]
[WhiteFideId "10670173"]
[BlackFideId "6402801"]
[WhiteElo "1861"]
[BlackElo "2069"]
[WhiteTeam "EGY"]
[BlackTeam "DOM"]
[WhiteClock "0:00:32"]
[BlackClock "0:00:00"]

1. Nf3 {[%clk 0:02:52]}  Nf6 {[%clk 0:02:57]} 2. g3 {[%clk 0:02:52]}  b6 {[%clk 0:02:51]} 3. Bg2 {[%clk 0:02:46]}  e6 {[%clk 0:02:49]} 4. O-O {[%clk 0:02:47]}  Be7 {[%clk 0:02:48]} 5. c4 {[%clk 0:02:48]}  Ba6 {[%clk 0:02:46]} 6. Qc2 {[%clk 0:02:45]}  Bb7 {[%clk 0:02:43]} 7. d4 {[%clk 0:02:40]}  Be4 {[%clk 0:02:37]} 8. Qd1 {[%clk 0:02:27]}  c5 {[%clk 0:02:33]} 9. Nc3 {[%clk 0:02:27]}  Bb7 {[%clk 0:02:25]} 10. Bf4 {[%clk 0:02:26]}  cxd4 {[%clk 0:02:22]} 11. Qxd4 {[%clk 0:02:21]}  O-O {[%clk 0:02:15]} 12. Rfd1 {[%clk 0:02:19]}  Nc6 {[%clk 0:02:05]} 13. Qd2 {[%clk 0:02:18]}  Rc8 {[%clk 0:01:58]} 14. Rac1 {[%clk 0:02:15]}  Bb4 {[%clk 0:01:39]} 15. Qd3 {[%clk 0:02:05]}  Bxc3 {[%clk 0:01:23]} 16. Rxc3 {[%clk 0:02:01]}  d5 {[%clk 0:01:22]} 17. Qb1 {[%clk 0:01:54]}  Qe7 {[%clk 0:01:01]} 18. Rcc1 {[%clk 0:01:44]}  h6 {[%clk 0:00:55]} 19. Ne5 {[%clk 0:01:39]}  dxc4 {[%clk 0:00:50]} 20. Nxc6 {[%clk 0:01:38]}  Bxc6 {[%clk 0:00:50]} 21. Bd6 {[%clk 0:01:38]}  Qb7 {[%clk 0:00:46]} 22. Bxc6 {[%clk 0:01:36]}  Qxc6 {[%clk 0:00:46]} 23. Bxf8 {[%clk 0:01:36]}  Kxf8 {[%clk 0:00:43]} 24. Qc2 {[%clk 0:01:08]}  Nd5 {[%clk 0:00:32]} 25. Qh7 {[%clk 0:00:58]}  c3 {[%clk 0:00:20]} 26. Qh8+ {[%clk 0:00:49]}  Ke7 {[%clk 0:00:20]} 27. Qxg7 {[%clk 0:00:48]}  c2 {[%clk 0:00:15]} 28. Rd2 {[%clk 0:00:48]}  Nb4 {[%clk 0:00:14]} 29. a3 {[%clk 0:00:47]}  Na2 {[%clk 0:00:12]} 30. Rcxc2 {[%clk 0:00:47]}  Qxc2 {[%clk 0:00:12]} 31. Rxc2 {[%clk 0:00:48]}  Rxc2 {[%clk 0:00:12]} 32. Qxh6 {[%clk 0:00:47]}  Rc1+ {[%clk 0:00:11]} 33. Kg2 {[%clk 0:00:45]}  Rc2 {[%clk 0:00:11]} 34. Qg5+ {[%clk 0:00:43]}  Ke8 {[%clk 0:00:12]} 35. Qe5 {[%clk 0:00:41]}  Nc1 {[%clk 0:00:11]} 36. e3 {[%clk 0:00:40]}  Ke7 {[%clk 0:00:09]} 37. Qd4 {[%clk 0:00:35]}  Ne2 {[%clk 0:00:07]} 38. Qb4+ {[%clk 0:00:35]}  Kf6 {[%clk 0:00:05]} 39. h4 {[%clk 0:00:35]}  Kg7 {[%clk 0:00:02]} 40. Qe4 {[%clk 0:00:33]}  Rxb2 {[%clk 0:00:02]} 41. Qe5+ {[%clk 0:00:32]}  f6 {[%clk 0:00:00]} 42. Qxb2 {[%clk 0:00:32]} 1-0

[Event "December 19 Early 2023"]
[Site "https://www.chess.com"]
[Date "2023.12.19"]
[Round "5"]
[White "Yushko, Olga"]
[Black "Kovalevsky, Stanislav"]
[Result "1-0"]
[Board "194"]
[TimeControl "180+1"]
[WhiteFideId "14114500"]
[BlackFideId "13508598"]
[WhiteElo "1891"]
[BlackElo "2043"]
[WhiteTeam "UKR"]
[BlackTeam "FID"]
[WhiteClock "0:02:04"]
[BlackClock "0:01:13"]

1. d4 {[%clk 0:02:59]}  d5 {[%clk 0:02:58]} 2. c4 {[%clk 0:02:49]}  c6 {[%clk 0:02:59]} 3. cxd5 {[%clk 0:02:47]}  cxd5 {[%clk 0:02:58]} 4. Nc3 {[%clk 0:02:47]}  Nf6 {[%clk 0:02:57]} 5. Nf3 {[%clk 0:02:48]}  Nc6 {[%clk 0:02:56]} 6. Bf4 {[%clk 0:02:48]}  e6 {[%clk 0:02:54]} 7. e3 {[%clk 0:02:48]}  a6 {[%clk 0:02:53]} 8. Bd3 {[%clk 0:02:48]}  Bd6 {[%clk 0:02:53]} 9. O-O {[%clk 0:02:49]}  Bxf4 {[%clk 0:02:53]} 10. exf4 {[%clk 0:02:50]}  Qb6 {[%clk 0:02:53]} 11. b3 {[%clk 0:02:38]}  Bd7 {[%clk 0:02:48]} 12. f5 {[%clk 0:02:38]}  Nxd4 {[%clk 0:02:30]} 13. Nxd4 {[%clk 0:02:34]}  Qxd4 {[%clk 0:02:31]} 14. fxe6 {[%clk 0:02:33]}  Qxc3 {[%clk 0:02:31]} 15. exd7+ {[%clk 0:02:32]}  Kxd7 {[%clk 0:02:31]} 16. Bf5+ {[%clk 0:02:30]}  Kd6 {[%clk 0:02:31]} 17. Rc1 {[%clk 0:02:27]}  Qa5 {[%clk 0:02:30]} 18. Qf3 {[%clk 0:02:22]}  Rae8 {[%clk 0:01:47]} 19. Qg3+ {[%clk 0:02:19]}  Re5 {[%clk 0:01:23]} 20. Qxg7 {[%clk 0:02:18]}  Rxf5 {[%clk 0:01:22]} 21. Qxh8 {[%clk 0:02:16]}  Qxa2 {[%clk 0:01:22]} 22. Qf8+ {[%clk 0:02:12]}  Ke5 {[%clk 0:01:20]} 23. Rfe1+ {[%clk 0:02:08]}  Kf4 {[%clk 0:01:20]} 24. Qh6+ {[%clk 0:02:07]}  Rg5 {[%clk 0:01:13]} 25. Qxf6+ {[%clk 0:02:04]} 1-0

[Event "December 19 Early 2023"]
[Site "https://www.chess.com"]
[Date "2023.12.19"]
[Round "5"]
[White "Kiselev, Pavel"]
[Black "Saim, Mohamed Ilias"]
[Result "1-0"]
[Board "196"]
[TimeControl "180+1"]
[WhiteFideId "4191102"]
[BlackFideId "7900465"]
[WhiteElo "2145"]
[BlackElo "2063"]
[WhiteTeam "RUS"]
[BlackTeam "ALG"]
[WhiteClock "0:00:11"]
[BlackClock "0:00:02"]

1. Nf3 {[%clk 0:02:26]}  c5 {[%clk 0:02:54]} 2. c4 {[%clk 0:02:25]}  g6 {[%clk 0:02:54]} 3. d4 {[%clk 0:02:26]}  cxd4 {[%clk 0:02:53]} 4. Nxd4 {[%clk 0:02:27]}  Bg7 {[%clk 0:02:54]} 5. g3 {[%clk 0:02:27]}  Nc6 {[%clk 0:02:51]} 6. Nxc6 {[%clk 0:02:27]}  bxc6 {[%clk 0:02:50]} 7. Bg2 {[%clk 0:02:28]}  Nf6 {[%clk 0:02:50]} 8. O-O {[%clk 0:02:28]}  O-O {[%clk 0:02:51]} 9. Nc3 {[%clk 0:02:29]}  Rb8 {[%clk 0:02:50]} 10. b3 {[%clk 0:02:29]}  e6 {[%clk 0:02:47]} 11. Bb2 {[%clk 0:02:28]}  d5 {[%clk 0:02:47]} 12. cxd5 {[%clk 0:02:24]}  cxd5 {[%clk 0:02:46]} 13. Qd2 {[%clk 0:02:15]}  Qa5 {[%clk 0:02:29]} 14. Rac1 {[%clk 0:02:11]}  Ba6 {[%clk 0:02:23]} 15. Rfe1 {[%clk 0:02:07]}  Rfc8 {[%clk 0:02:21]} 16. Red1 {[%clk 0:00:33]}  Ng4 {[%clk 0:01:50]} 17. h3 {[%clk 0:00:16]}  Bh6 {[%clk 0:01:46]} 18. e3 {[%clk 0:00:13]}  Nf6 {[%clk 0:01:39]} 19. Nxd5 {[%clk 0:00:06]}  Qxd2 {[%clk 0:01:30]} 20. Nxf6+ {[%clk 0:00:06]}  Kg7 {[%clk 0:01:30]} 21. Nh5+ {[%clk 0:00:04]}  Kf8 {[%clk 0:01:08]} 22. Rxc8+ {[%clk 0:00:05]}  Rxc8 {[%clk 0:01:04]} 23. Rxd2 {[%clk 0:00:05]}  gxh5 {[%clk 0:01:04]} 24. Be4 {[%clk 0:00:06]}  f5 {[%clk 0:01:02]} 25. Bf3 {[%clk 0:00:06]}  h4 {[%clk 0:01:02]} 26. gxh4 {[%clk 0:00:06]}  Bg7 {[%clk 0:01:00]} 27. Bxg7+ {[%clk 0:00:05]}  Kxg7 {[%clk 0:01:01]} 28. Rd7+ {[%clk 0:00:06]}  Kg6 {[%clk 0:00:55]} 29. Rxa7 {[%clk 0:00:07]}  Rc1+ {[%clk 0:00:53]} 30. Kg2 {[%clk 0:00:07]}  Bf1+ {[%clk 0:00:52]} 31. Kg3 {[%clk 0:00:08]}  Bd3 {[%clk 0:00:38]} 32. a4 {[%clk 0:00:07]}  Rb1 {[%clk 0:00:33]} 33. Rb7 {[%clk 0:00:04]}  e5 {[%clk 0:00:29]} 34. Bd5 {[%clk 0:00:03]}  Rg1+ {[%clk 0:00:28]} 35. Kf3 {[%clk 0:00:03]}  e4+ {[%clk 0:00:25]} 36. Kf4 {[%clk 0:00:03]}  Rh1 {[%clk 0:00:19]} 37. Rb6+ {[%clk 0:00:04]}  Kg7 {[%clk 0:00:18]} 38. Kxf5 {[%clk 0:00:04]}  Rxh3 {[%clk 0:00:17]} 39. Bxe4 {[%clk 0:00:05]}  Bxe4+ {[%clk 0:00:16]} 40. Kxe4 {[%clk 0:00:06]}  Rxh4+ {[%clk 0:00:17]} 41. f4 {[%clk 0:00:07]}  Kf7 {[%clk 0:00:15]} 42. b4 {[%clk 0:00:08]}  Rh1 {[%clk 0:00:14]} 43. a5 {[%clk 0:00:08]}  Ra1 {[%clk 0:00:14]} 44. a6 {[%clk 0:00:09]}  Ke7 {[%clk 0:00:14]} 45. b5 {[%clk 0:00:10]}  Kd7 {[%clk 0:00:14]} 46. Rb7+ {[%clk 0:00:11]}  Kd6 {[%clk 0:00:14]} 47. a7 {[%clk 0:00:09]}  h5 {[%clk 0:00:13]} 48. b6 {[%clk 0:00:10]}  h4 {[%clk 0:00:12]} 49. Rh7 {[%clk 0:00:10]}  Kc6 {[%clk 0:00:10]} 50. b7 {[%clk 0:00:11]}  Ra4+ {[%clk 0:00:07]} 51. Kf3 {[%clk 0:00:11]}  Rxa7 {[%clk 0:00:06]} 52. b8=N+ {[%clk 0:00:11]}  Kc5 {[%clk 0:00:02]} 53. Rxa7 {[%clk 0:00:11]} 1-0

[Event "December 19 Early 2023"]
[Site "https://www.chess.com"]
[Date "2023.12.19"]
[Round "5"]
[White "Navyblue1"]
[Black "Szyszylo, Rafal"]
[Result "0-1"]
[Board "197"]
[TimeControl "180+1"]
[BlackFideId "1109626"]
[WhiteElo "2062"]
[BlackElo "1951"]
[BlackTeam "POL"]
[WhiteClock "0:00:02"]
[BlackClock "0:01:23"]

1. d4 {[%clk 0:03:00]}  g6 {[%clk 0:02:58]} 2. c4 {[%clk 0:02:58]}  d6 {[%clk 0:02:58]} 3. Nc3 {[%clk 0:02:55]}  Nf6 {[%clk 0:02:59]} 4. e4 {[%clk 0:02:55]}  Bg7 {[%clk 0:02:59]} 5. h3 {[%clk 0:02:53]}  O-O {[%clk 0:03:00]} 6. Be3 {[%clk 0:02:52]}  Nbd7 {[%clk 0:02:59]} 7. Nf3 {[%clk 0:02:49]}  e5 {[%clk 0:02:59]} 8. d5 {[%clk 0:02:48]}  Nc5 {[%clk 0:02:57]} 9. Nd2 {[%clk 0:02:45]}  a5 {[%clk 0:02:57]} 10. g4 {[%clk 0:02:34]}  Bd7 {[%clk 0:02:48]} 11. Be2 {[%clk 0:02:05]}  c6 {[%clk 0:02:35]} 12. h4 {[%clk 0:01:10]}  a4 {[%clk 0:02:18]} 13. h5 {[%clk 0:00:36]}  Qa5 {[%clk 0:02:08]} 14. Kf1 {[%clk 0:00:19]}  a3 {[%clk 0:02:00]} 15. g5 {[%clk 0:00:14]}  axb2 {[%clk 0:01:48]} 16. gxf6 {[%clk 0:00:13]}  bxa1=Q {[%clk 0:01:48]} 17. fxg7 {[%clk 0:00:13]}  Qxd1+ {[%clk 0:01:47]} 18. Nxd1 {[%clk 0:00:12]}  Kxg7 {[%clk 0:01:34]} 19. h6+ {[%clk 0:00:12]}  Kg8 {[%clk 0:01:34]} 20. Kg2 {[%clk 0:00:02]}  f5 {[%clk 0:01:23]} 0-1

[Event "December 19 Early 2023"]
[Site "https://www.chess.com"]
[Date "2023.12.19"]
[Round "5"]
[White "Crispin Ferreras, Darvi Abraham"]
[Black "Brandao, Marcius Gomes"]
[Result "0-1"]
[Board "198"]
[TimeControl "180+1"]
[WhiteFideId "6402771"]
[BlackFideId "2124980"]
[WhiteElo "2149"]
[BlackElo "2086"]
[WhiteTeam "DOM"]
[BlackTeam "BRA"]
[WhiteClock "0:00:00"]
[BlackClock "0:01:04"]

1. e4 {[%clk 0:03:00]}  c5 {[%clk 0:02:59]} 2. Nf3 {[%clk 0:02:59]}  Nc6 {[%clk 0:02:59]} 3. Bb5 {[%clk 0:02:54]}  g6 {[%clk 0:02:57]} 4. O-O {[%clk 0:02:52]}  Bg7 {[%clk 0:02:56]} 5. c3 {[%clk 0:02:51]}  Nf6 {[%clk 0:02:54]} 6. Qe2 {[%clk 0:02:49]}  O-O {[%clk 0:02:46]} 7. e5 {[%clk 0:02:48]}  Nd5 {[%clk 0:02:46]} 8. d4 {[%clk 0:02:46]}  Qb6 {[%clk 0:02:37]} 9. c4 {[%clk 0:02:40]}  Nc7 {[%clk 0:01:51]} 10. Nc3 {[%clk 0:02:33]}  Nxd4 {[%clk 0:01:44]} 11. Nxd4 {[%clk 0:02:31]}  cxd4 {[%clk 0:01:43]} 12. Na4 {[%clk 0:02:30]}  Qe6 {[%clk 0:01:35]} 13. Bf4 {[%clk 0:02:25]}  a6 {[%clk 0:01:30]} 14. Nc5 {[%clk 0:02:23]}  Qf5 {[%clk 0:01:18]} 15. Ba4 {[%clk 0:00:04]}  Qxf4 {[%clk 0:01:16]} 16. Bxd7 {[%clk 0:00:00]}  Qxe5 {[%clk 0:01:04]} 0-1